lending/lending_fUSD_20251121
["ID","MTS","AMOUNT","RATE_DAILY","PERIOD"]
[394580777,1763734240258,-150.816,0.00017348,2]
[394580778,1763734240267,-162.0,0.00017348,2]
[394580779,1763734240277,-4268.26299406,0.00017355,2]
[394580780,1763734240287,-200.0,0.00017364,2]
[394580781,1763734240297,-233.03885101,0.00017364,2]
[394580782,1763734240307,-500.0,0.00017364,2]
[394580783,1763734240317,-500.0,0.00017364,2]
[394580784,1763734240327,-166.00439136,0.00017364,2]
[394580785,1763734240336,-500.0,0.00017364,2]
[394580786,1763734240346,-500.0,0.00017364,2]
[394580787,1763734240356,-1807.08,0.00017375,2]
[394580788,1763734240366,-278.33,0.00017384,2]
[394580789,1763734240375,-166.66,0.00017392,2]
[394580790,1763734240384,-150.0,0.00017397,2]
[394580791,1763734240393,-150.0,0.000174,2]
[394580792,1763734240402,-4000.0,0.000174,6]
[394580793,1763734240412,-153.52637505,0.00017409,2]
[394580794,1763734240421,-550.79,0.00017444,2]
[394580795,1763734240431,-550.79,0.00017444,2]
[394580796,1763734240609,-550.79,0.00017444,2]
[394580797,1763734240634,-150.0,0.00017448,2]
[394580798,1763734240644,-500.0,0.00017499,2]
[394580799,1763734240653,-5300.0,0.000175,6]
[394580800,1763734240663,-500.0,0.00017501,2]
[394580801,1763734240672,-500.0,0.00017501,2]
[394580802,1763734240682,-500.0,0.00017501,2]
[394580803,1763734240692,-500.0,0.00017501,2]
[394580804,1763734240702,-309.0,0.00017509,2]
[394580805,1763734240711,-150.0,0.00017534,2]
[394580806,1763734240721,-500.0,0.00017534,2]
[394580807,1763734240730,-6700.0,0.000176,6]
[394580808,1763734240740,-4268.26299406,0.00017627,2]
[394580809,1763734240750,-500.0,0.00017638,2]
[394580810,1763734240759,-500.0,0.00017638,2]
[394580811,1763734240769,-500.0,0.00017638,2]
[394580812,1763734240778,-500.0,0.00017638,2]
[394580813,1763734240788,-10127.7258081,0.00017643,2]
[394580814,1763734240798,-1807.08,0.00017649,2]
[394580815,1763734240807,-1436.6283801,0.00017685,2]
[394580816,1763734240817,-1300.0,0.000177,6]
[394580817,1763734240827,-1237.37352836,0.00017726,2]
[394580818,1763734240837,-6605.0,0.0001775,2]
[394580819,1763734240847,-25000.0,0.0001775,3]
[394580820,1763734240857,-426.56612961,0.0001775,3]
[394580821,1763734240867,-25000.0,0.00017759,3]
[394580822,1763734240877,-25000.0,0.00017768,3]
[394580823,1763734240887,-502.46688489,0.00017773,2]
[394580824,1763734240896,-500.0,0.00017775,2]
[394580825,1763734240905,-500.0,0.00017775,2]
[394580826,1763734240915,-500.0,0.00017775,2]
[394580827,1763734240925,-616.08992006,0.00017775,2]
[394580828,1763734240935,-1081.74362509,0.00017776,5]
[394580829,1763734240944,-25000.0,0.00017777,3]
[394580830,1763734240954,-866.0,0.00017778,2]
[394580831,1763734240963,-25000.0,0.00017786,3]
[394580832,1763734240972,-564.06486891,0.00017787,2]
[394580833,1763734240981,-1000.0,0.00017788,2]
[394580834,1763734240991,-1000.0,0.00017788,2]
[394580835,1763734241000,-25000.0,0.00017794,3]
[394580836,1763734241010,-1300.0,0.000178,6]
[394580837,1763734241020,-500.0,0.00017803,2]
[394580838,1763734241029,-500.0,0.00017803,2]
[394580839,1763734241039,-869.75,0.00017803,2]
[394580840,1763734241048,-500.0,0.00017803,2]
[394580841,1763734241057,-500.0,0.00017803,2]
[394580842,1763734241067,-261.58291863,0.00017803,2]
[394580843,1763734241076,-737.71,0.00017803,2]
[394580844,1763734241086,-25000.0,0.00017803,3]
[394580845,1763734241095,-500.0,0.00017808,2]
[394580846,1763734241105,-500.0,0.00017808,2]
[394580847,1763734241114,-500.0,0.00017811,2]
[394580848,1763734241124,-25000.0,0.00017812,3]
[394580849,1763734241133,-163.74,0.0001782,2]
[394580850,1763734241147,-693.53732,0.0001782,2]
[394580851,1763734241156,-25000.0,0.00017821,3]
[394580852,1763734241166,-25000.0,0.0001783,3]
[394580853,1763734241177,-25000.0,0.00017838,3]
[394580854,1763734241190,-309.0,0.00017845,2]
[394580855,1763734241200,-25000.0,0.00017847,3]
[394580856,1763734241209,-500.0,0.00017855,2]
[394580857,1763734241219,-500.0,0.00017855,2]
[394580858,1763734241231,-500.0,0.00017855,2]
[394580859,1763734241240,-500.0,0.00017856,2]
[394580860,1763734241250,-25000.0,0.00017856,3]
[394580861,1763734241259,-500.0,0.00017856,2]
[394580862,1763734241268,-500.0,0.00017856,2]
[394580863,1763734241278,-500.0,0.00017856,2]
[394580864,1763734241287,-500.0,0.00017856,2]
[394580865,1763734241297,-500.0,0.00017856,2]
[394580866,1763734241306,-200.0,0.00017856,2]
[394580867,1763734241315,-25000.0,0.00017865,3]
[394580868,1763734241325,-501.42210277,0.00017873,2]
[394580869,1763734241335,-25000.0,0.00017874,3]
[394580870,1763734241345,-500.0,0.00017882,2]
[394580871,1763734241356,-500.0,0.00017882,2]
[394580872,1763734241366,-869.75,0.00017882,2]
[394580873,1763734241375,-500.0,0.00017882,2]
[394580874,1763734241385,-500.0,0.00017882,2]
[394580875,1763734241395,-737.71,0.00017882,2]
[394580876,1763734241404,-25000.0,0.00017882,3]
[394580877,1763734241414,-1436.6283801,0.00017888,2]
[394580878,1763734241423,-500.0,0.0001789,2]
[394580879,1763734241433,-25000.0,0.00017891,3]
[394580880,1763734241443,-426.56612961,0.00017891,3]
[394580881,1763734241453,-25000.0,0.000179,3]
[394580882,1763734241463,-426.56612961,0.000179,3]
[394580883,1763734241472,-711.49811328,0.000179,2]
[394580884,1763734241482,-1300.0,0.000179,6]
[394580885,1763734241491,-153.52637505,0.000179,2]
[394580886,1763734241501,-4268.26299406,0.000179,2]
[394580887,1763734241511,-537.6819669,0.000179,2]
[394580888,1763734241521,-3102.37175146,0.000179,2]
[394580889,1763734241531,-223.6937853,0.000179,3]
[394580890,1763734241541,-621.12818864,0.00017912,2]
[394580891,1763734241550,-500.0,0.00017912,2]
[394580892,1763734241560,-500.0,0.00017912,2]
[394580893,1763734241570,-1807.08,0.00017923,2]
[394580894,1763734241580,-693.53732,0.0001793,2]
[394580895,1763734241590,-500.0,0.00017945,2]
[394580896,1763734241599,-1219.71735426,0.00017963,2]
[394580897,1763734241609,-292.18778882,0.00017973,2]
[394580898,1763734241619,-597.57535508,0.00017973,2]
[394580899,1763734241629,-500.0,0.00017973,2]
[394580900,1763734241638,-500.0,0.00017973,2]
[394580901,1763734241647,-500.0,0.00017973,2]
[394580902,1763734241657,-500.0,0.00017973,2]
[394580903,1763734241668,-500.0,0.00017973,2]
[394580904,1763734241677,-500.0,0.00017973,2]
[394580905,1763734241688,-500.0,0.00017973,2]
[394580906,1763734241698,-501.28182449,0.00017973,2]
[394580907,1763734241707,-365.08659521,0.00017973,2]
[394580908,1763734241717,-505.12903491,0.00017973,2]
[394580909,1763734241727,-500.0,0.00017973,2]
[394580910,1763734241737,-500.0,0.00017973,2]
[394580911,1763734241746,-500.0,0.00017973,2]
[394580912,1763734241756,-500.0,0.00017973,2]
[394580913,1763734241766,-500.0,0.00017973,2]
[394580914,1763734241775,-515.80477171,0.00017973,2]
[394580915,1763734241785,-500.0,0.00017973,2]
[394580916,1763734241794,-500.0,0.00017973,2]
[394580917,1763734241804,-500.0,0.00017973,2]
[394580918,1763734241813,-188.22811824,0.00017973,2]
[394580919,1763734241822,-500.0,0.00017973,2]
[394580920,1763734241832,-500.0,0.00017973,2]
[394580921,1763734241841,-63608.945567,0.00017987,2]
[394580922,1763734241851,-1219.71735426,0.0001799,2]
[394580923,1763734241860,-1219.71735426,0.0001799,2]
[394580924,1763734241870,-163.74,0.0001799,2]
[394580925,1763734241880,-163.74,0.0001799,2]
[394580926,1763734241889,-164.03,0.00017991,2]
[394580927,1763734241898,-151.0,0.00017997,2]
[394580928,1763734241908,-239.44889093,0.00017998,2]
[394580929,1763734241918,-150.0,0.00017999,2]
[394580930,1763734241928,-1081.74362509,0.00017999,5]
[394580931,1763734241939,-1081.74362509,0.00017999,5]
[394580932,1763734241949,-1081.74362514,0.00017999,5]
[394580933,1763734241958,-1081.74362509,0.00017999,5]
[394580934,1763734241968,-1081.74362509,0.00017999,5]
[394580935,1763734241978,-1081.74362509,0.00017999,5]
[394580936,1763734241987,-1081.74362509,0.00017999,5]
[394580937,1763734241997,-1081.74362509,0.00017999,5]
[394580938,1763734242007,-1081.74362509,0.00017999,5]
[394580939,1763734242016,-300.0,0.00017999,2]
[394580940,1763734242025,-300.0,0.00017999,2]
[394580941,1763734242035,-666.0,0.00017999,2]
[394580942,1763734242044,-500.0,0.00017999,2]
[394580943,1763734242053,-500.0,0.00017999,2]
[394580944,1763734242062,-500.0,0.00017999,2]
[394580945,1763734242072,-500.0,0.00017999,2]
[394580946,1763734242082,-526.09062591,0.00017999,2]
[394580947,1763734242091,-500.0,0.00017999,2]
[394580948,1763734242101,-500.0,0.00017999,2]
[394580949,1763734242110,-500.0,0.00017999,2]
[394580950,1763734242119,-500.0,0.00017999,2]
[394580951,1763734242129,-500.0,0.00017999,2]
[394580952,1763734242138,-500.0,0.00017999,2]
[394580953,1763734242151,-500.0,0.00017999,2]
[394580954,1763734242161,-500.0,0.00017999,2]
[394580955,1763734242170,-344.93436629,0.00017999,2]
[394580956,1763734242179,-869.75,0.00017999,2]
[394580957,1763734242188,-869.75,0.00017999,2]
[394580958,1763734242198,-869.75,0.00017999,2]
[394580959,1763734242208,-869.75,0.00017999,2]
[394580960,1763734242217,-869.75,0.00017999,2]
[394580961,1763734242227,-869.75,0.00017999,2]
[394580962,1763734242237,-869.75,0.00017999,2]
[394580963,1763734242247,-869.75,0.00017999,2]
[394580964,1763734242256,-869.75,0.00017999,2]
[394580965,1763734242266,-869.75,0.00017999,2]
[394580966,1763734242276,-869.75,0.00017999,2]
[394580967,1763734242286,-869.75,0.00017999,2]
[394580968,1763734242295,-869.75,0.00017999,2]
[394580969,1763734242305,-869.75,0.00017999,2]
[394580970,1763734242314,-869.75,0.00017999,2]
[394580971,1763734242324,-869.75,0.00017999,2]
[394580972,1763734242334,-869.75,0.00017999,2]
[394580973,1763734242343,-869.75,0.00017999,2]
[394580974,1763734242352,-869.76739693,0.00017999,2]
[394580975,1763734242362,-500.0,0.00017999,2]
[394580976,1763734242372,-500.0,0.00017999,2]
[394580977,1763734242382,-500.0,0.00017999,2]
[394580978,1763734242392,-500.0,0.00017999,2]
[394580979,1763734242402,-500.0,0.00017999,2]
[394580980,1763734242411,-500.0,0.00017999,2]
[394580981,1763734242420,-500.0,0.00017999,2]
[394580982,1763734242429,-500.0,0.00017999,2]
[394580983,1763734242439,-500.0,0.00017999,2]
[394580984,1763734242449,-500.0,0.00017999,2]
[394580985,1763734242459,-500.0,0.00017999,2]
[394580986,1763734242468,-500.0,0.00017999,2]
[394580987,1763734242478,-500.0,0.00017999,2]
[394580988,1763734242487,-500.0,0.00017999,2]
[394580989,1763734242497,-500.0,0.00017999,2]
[394580990,1763734242507,-500.0,0.00017999,2]
[394580991,1763734242517,-500.0,0.00017999,2]
[394580992,1763734242528,-500.0,0.00017999,2]
[394580993,1763734242538,-157.27985602,0.00017999,2]
[394580994,1763734242548,-300.0,0.00017999,2]
[394580995,1763734242558,-300.0,0.00017999,2]
[394580996,1763734242568,-666.0,0.00017999,2]
[394580997,1763734242579,-300.0,0.00017999,2]
[394580998,1763734242589,-300.0,0.00017999,2]
[394580999,1763734242599,-666.0,0.00017999,2]
[394581000,1763734242610,-500.0,0.00017999,2]
[394581001,1763734242620,-500.0,0.00017999,2]
[394581002,1763734242629,-500.0,0.00017999,2]
[394581003,1763734242639,-500.0,0.00017999,2]
[394581004,1763734242648,-500.0,0.00017999,2]
[394581005,1763734242658,-500.0,0.00017999,2]
[394581006,1763734242667,-500.0,0.00017999,2]
[394581007,1763734242677,-500.0,0.00017999,2]
[394581008,1763734242687,-500.0,0.00017999,2]
[394581009,1763734242697,-500.0,0.00017999,2]
[394581010,1763734242707,-627.24716056,0.00017999,2]
[394581011,1763734242716,-737.71,0.00017999,2]
[394581012,1763734242726,-737.71,0.00017999,2]
[394581013,1763734242735,-737.71,0.00017999,2]
[394581014,1763734242744,-737.71,0.00017999,2]
[394581015,1763734242754,-737.71,0.00017999,2]
[394581016,1763734242764,-737.71,0.00017999,2]
[394581017,1763734242773,-737.71,0.00017999,2]
[394581018,1763734242782,-737.71,0.00017999,2]
[394581019,1763734242792,-737.71,0.00017999,2]
[394581020,1763734242801,-737.71,0.00017999,2]
[394581021,1763734242811,-737.71,0.00017999,2]
[394581022,1763734242820,-737.71,0.00017999,2]
[394581023,1763734242830,-737.71,0.00017999,2]
[394581024,1763734242839,-737.71,0.00017999,2]
[394581025,1763734242850,-737.71,0.00017999,2]
[394581026,1763734242859,-737.71,0.00017999,2]
[394581027,1763734242868,-737.71,0.00017999,2]
[394581028,1763734242878,-737.71,0.00017999,2]
[394581029,1763734242888,-737.93945968,0.00017999,2]
[394581030,1763734242898,-150.0,0.00018,2]
[394581031,1763734242908,-150.0,0.00018,2]
[394581032,1763734242917,-150.0,0.00018,2]
[394581033,1763734242926,-150.0,0.00018,2]
[394581034,1763734242936,-150.0,0.00018,2]
[394581035,1763734242946,-1304670.43903056,0.00018,2]
[394581036,1763734242955,-4268925.97830404,0.00018,2]
[394581037,1763734242964,-680840.53738422,0.00018,2]
[394581038,1763734242973,-625202.52478516,0.00018,2]
[394581039,1763734242983,-634624.89329184,0.00018,2]
[394581040,1763734242992,-180.0,0.00018,2]
[394581041,1763734243001,-176561.51001854,0.00018,2]
[394581042,1763734243011,-443851.8652144,0.00018,2]
[394581044,1763734244330,-173.91771434,0.00016514,2]
[394581045,1763734244341,-195.26667733,0.00016514,2]
[394581046,1763734244351,-173.91771434,0.0001709,2]
[394581047,1763734244360,-250.0,0.00017671,2]
[394581048,1763734244370,-591.04231033,0.00018,2]
[394581049,1763734244381,-442.39804963,0.00018,2]
[394581050,1763734244393,-2103.58124905,0.00018,2]
[394581051,1763734244408,-339.77859344,0.00018,2]
[394581052,1763734244418,-993.28009279,0.00018,4]
[394581099,1763734246782,-561.0,0.00017102,2]
[394581100,1763734246792,-1128.42927767,0.00017639,2]
[394581101,1763734246803,-1060.17200607,0.00017639,2]
[394581102,1763734246814,-1015.87422727,0.00017639,2]
[394581103,1763734246824,-151.0,0.0001782,2]
[394581104,1763734246834,-146.71990721,0.00018,4]
[394581105,1763734246843,-335922.15571434,0.00018,2]
[394581110,1763734296291,3355.918,0.00015137,2]
[394581111,1763734296342,229.071,0.00015137,2]
[394581114,1763734327807,-151.11115548,0.00015346,2]
[394581115,1763734327841,-4100.08955126,0.00015346,2]
[394581116,1763734327874,-300.0,0.00015444,2]
[394581117,1763734327906,-300.0,0.00015445,2]
[394581118,1763734328023,-297.60858652,0.00015445,2]
[394581119,1763734328067,-202.39141348,0.00015445,2]
[394581120,1763734328097,-500.0,0.00015445,2]
[394581121,1763734328128,-465.47263152,0.00015445,2]
[394581122,1763734328165,-571.87323032,0.00015445,2]
[394581123,1763734328201,-571.87323032,0.00015445,2]
[394581124,1763734328238,-571.87323032,0.00015445,2]
[394581125,1763734328277,-571.87323032,0.00015445,2]
[394581126,1763734328312,-571.87323032,0.00015445,2]
[394581127,1763734328348,-571.87323032,0.00015445,2]
[394581128,1763734328385,-229.92991584,0.00015445,2]
[394581129,1763734328706,-341.94331448,0.00015445,2]
[394581130,1763734328716,-27.53850236,0.00015445,2]
[394581131,1763734330683,-544.33472796,0.00015445,2]
[394581132,1763734330718,-571.87323032,0.00015445,2]
[394581133,1763734330753,-571.87323032,0.00015445,2]
[394581134,1763734330788,-571.87323032,0.00015445,2]
[394581135,1763734330822,-571.87323032,0.00015445,2]
[394581136,1763734330857,-571.87323032,0.00015445,2]
[394581137,1763734330892,-571.87323032,0.00015445,2]
[394581138,1763734330927,-571.87323032,0.00015445,2]
[394581139,1763734330962,-333.24208928,0.00015445,2]
[394581140,1763734331291,-238.63114104,0.00015445,2]
[394581142,1763734336808,-571.87323032,0.00015445,2]
[394581143,1763734336843,-571.87323032,0.00015445,2]
[394581144,1763734336894,-571.87323032,0.00015445,2]
[394581145,1763734336937,-571.87323032,0.00015445,2]
[394581146,1763734336974,-571.87323032,0.00015445,2]
[394581147,1763734337009,-571.87323032,0.00015445,2]
[394581148,1763734337045,-571.87323032,0.00015445,2]
[394581149,1763734337079,-571.87323032,0.00015445,2]
[394581150,1763734337116,-278.16508456,0.00015445,2]
[394581151,1763734337386,-293.70814576,0.00015445,2]
[394581152,1763734337423,-571.87323032,0.00015445,2]
[394581153,1763734337459,-571.87323032,0.00015445,2]
[394581154,1763734337498,-571.87323032,0.00015445,2]
[394581155,1763734337537,-571.87323032,0.00015445,2]
[394581156,1763734337575,-571.87323032,0.00015445,2]
[394581157,1763734337613,-571.87323032,0.00015445,2]
[394581158,1763734337652,-571.87323032,0.00015445,2]
[394581159,1763734337690,-571.87323032,0.00015445,2]
[394581160,1763734338543,-293.70814576,0.00015445,2]
[394581161,1763734338568,-262.62202336,0.00015445,2]
[394581162,1763734340415,-15.5430612,0.00015445,2]
[394581163,1763734340450,-571.87323032,0.00015445,2]
[394581164,1763734340484,-571.87323032,0.00015445,2]
[394581165,1763734340520,-571.87323032,0.00015445,2]
[394581166,1763734340556,-571.87323032,0.00015445,2]
[394581167,1763734340591,-571.87323032,0.00015445,2]
[394581168,1763734340628,-571.87323032,0.00015445,2]
[394581169,1763734340662,-571.87323032,0.00015445,2]
[394581170,1763734340697,-571.87323032,0.00015445,2]
[394581171,1763734340733,-247.07896216,0.00015445,2]
[394581172,1763734341499,-324.79426816,0.00015445,2]
[394581174,1763734358285,-571.87323032,0.00015445,2]
[394581175,1763734358323,-571.87323032,0.00015445,2]
[394581176,1763734358361,-571.87323032,0.00015445,2]
[394581177,1763734358398,-571.87323032,0.00015445,2]
[394581178,1763734358435,-571.87323032,0.00015445,2]
[394581179,1763734358471,-571.87323032,0.00015445,2]
[394581180,1763734358508,-571.87323032,0.00015445,2]
[394581181,1763734358547,-571.87323032,0.00015445,2]
[394581182,1763734358765,-1143.74646065,0.00015445,2]
[394581183,1763734358803,-1143.74646065,0.00015445,2]
[394581184,1763734358839,-1143.74646065,0.00015445,2]
[394581185,1763734358877,-1143.74646065,0.00015445,2]
[394581186,1763734359022,-1143.74646065,0.00015445,2]
[394581187,1763734359059,-1143.74646065,0.00015445,2]
[394581188,1763734359096,-1143.74646065,0.00015445,2]
[394581189,1763734359132,-1143.74646065,0.00015445,2]
[394581190,1763734359205,-1143.74646065,0.00015445,2]
[394581191,1763734359243,-1143.74646065,0.00015445,2]
[394581192,1763734359283,-1143.74646065,0.00015445,2]
[394581193,1763734359321,-1143.74646065,0.00015445,2]
[394581194,1763734359541,-1143.74646065,0.00015445,2]
[394581195,1763734359580,-1143.74646065,0.00015445,2]
[394581196,1763734359618,-1143.74646065,0.00015445,2]
[394581197,1763734359660,-1143.74646065,0.00015445,2]
[394581198,1763734359759,-1143.74646065,0.00015445,2]
[394581199,1763734359798,-1143.74646065,0.00015445,2]
[394581200,1763734359829,-500.0,0.00015445,2]
[394581201,1763734359861,-411.08571903,0.00015445,2]
[394581203,1763734367216,1200.0,0.00015445,2]
[394581205,1763734378629,182.7828374,0.00015346,2]
[394581206,1763734380782,187.76000332,0.00015445,2]
[394581207,1763734380827,287.02908687,0.00015445,2]
[394581208,1763734380919,322.51677615,0.00015445,2]
[394581211,1763734382197,300.0,0.00015445,2]
[394581252,1763734398092,500.0,0.00015445,2]
[394581262,1763734406411,500.0,0.00015246,2]
[394581264,1763734412337,7719.92129626,0.00015346,2]
[394581265,1763734412365,10000.01,0.00015346,2]
[394581266,1763734412391,1194.58830374,0.00015346,2]
[394581267,1763734416046,1100.0,0.000149,5]
[394581269,1763734430712,1000.0,0.00015346,2]
[394581271,1763734435458,2243.95521441,0.00015346,2]
[394581280,1763734491221,152.52098494,0.00015346,2]
[394581282,1763734501330,166.66,0.00013186,2]
[394581283,1763734501903,300.0,0.00015445,2]
[394581284,1763734504001,300.0,0.00015445,2]
[394581285,1763734504034,300.0,0.00015445,2]
[394581286,1763734504218,1200.0,0.00015445,2]
[394581289,1763734522780,500.0,0.00015445,2]
[394581290,1763734522826,500.0,0.00015445,2]
[394581291,1763734522881,379.75209796,0.00015445,2]
[394581294,1763734535487,500.0,0.00015445,2]
[394581295,1763734535567,550.0,0.00015445,2]
[394581297,1763734547233,500.0,0.00015445,2]
[394581298,1763734547330,212.53339895,0.00015445,2]
[394581299,1763734547356,41.45146829,0.00015445,2]
[394581300,1763734547435,500.0,0.00015445,2]
[394581301,1763734547481,500.0,0.00015445,2]
[394581349,1763734575955,248.1495,0.00015246,2]
[394581359,1763734596993,500.0,0.00015446,2]
[394581360,1763734599674,1000.0,0.00015346,2]
[394581361,1763734602361,500.0,0.00015446,2]
[394581362,1763734602611,500.0,0.00015446,2]
[394581363,1763734602850,500.0,0.00015446,2]
[394581364,1763734621262,781.86,0.00015446,2]
[394581365,1763734621865,781.86,0.00015446,2]
[394581366,1763734622086,781.86,0.00015446,2]
[394581367,1763734624095,500.0,0.00015446,2]
[394581368,1763734624342,500.0,0.00015446,2]
[394581369,1763734624714,500.0,0.00015446,2]
[394581370,1763734626277,300.0,0.00015445,2]
[394581371,1763734641606,500.0,0.00015446,2]
[394581372,1763734641864,500.0,0.00015446,2]
[394581373,1763734642414,500.0,0.00015446,2]
[394581374,1763734648960,64.82903171,0.00015346,2]
[394581375,1763734648984,103.32557451,0.00015346,2]
[394581376,1763734653245,500.0,0.00015446,2]
[394581377,1763734653515,500.0,0.00015446,2]
[394581378,1763734653756,500.0,0.00015446,2]
[394581379,1763734682168,300.0,0.00015445,2]
[394581380,1763734687706,427.969937,7.945e-05,2]
[394581381,1763734737161,1081.74362509,0.00015445,5]
[394581382,1763734743593,300.0,0.00015445,2]
[394581384,1763734790250,1937.6,0.000215,120]
[394581385,1763734797832,306.55814107,0.00015346,2]
[394581386,1763734803311,300.0,0.00015445,2]
[394581387,1763734803589,300.0,0.00015445,2]
[394581388,1763734803795,1200.0,0.00015445,2]
[394581389,1763734814770,1625.07,0.00015436,2]
[394581390,1763734814987,1625.07,0.00015436,2]
[394581391,1763734821926,2012.01634742,0.00015346,2]
[394581392,1763734821951,7.54334554,0.00015346,2]
[394581393,1763734823493,3693.98038802,0.00015346,2]
[394581394,1763734826508,151.11115548,0.00015346,2]
[394581395,1763734861818,300.0,0.00015445,2]
[394581396,1763734870200,1000.0,0.00015445,2]
[394581397,1763734896667,2684.735,0.00015137,2]
[394581398,1763734896713,183.257,0.00015137,2]
[394581399,1763734926230,168.15460622,0.00015346,2]
[394581400,1763734961103,261.58291863,0.00015446,2]
[394581401,1763734966420,645.5,0.00015446,2]
[394581407,1763734984622,300.0,0.00015445,2]
[394581552,1763735018348,604.14558611,0.00013699,2]
[394581553,1763735018373,395.85441389,0.00013699,2]
[394581554,1763735041647,300.0,0.00015445,2]
[394581557,1763735043474,300.0,0.00015445,2]
[394581561,1763735049211,166.66,0.00014898,2]
[394581562,1763735049448,166.66,0.00015212,2]
[394581630,1763735102017,300.0,0.00015445,2]
[394581675,1763735103097,300.0,0.00015445,2]
[394581679,1763735103181,1200.0,0.00015445,2]
[394582071,1763735117066,151.11115548,0.00015346,2]
[394582088,1763735168335,500.0,0.00015446,2]
[394582089,1763735195072,500.0,0.00015445,2]
[394582090,1763735195143,200.92036081,0.00015445,2]
[394582091,1763735195204,225.76174331,0.00015445,2]
[394582092,1763735195549,516.43200232,0.00015445,2]
[394582093,1763735197905,194.88720747,0.00015445,2]
[394582094,1763735197955,500.0,0.00015445,2]
[394582095,1763735197996,168.15460622,0.00015346,2]
[394582096,1763735198060,500.0,0.00015445,2]
[394582097,1763735198121,500.0,0.00015445,2]
[394582098,1763735198164,500.0,0.00015445,2]
[394582099,1763735198220,500.0,0.00015445,2]
[394582100,1763735198279,500.0,0.00015445,2]
[394582101,1763735198332,500.0,0.00015445,2]
[394582102,1763735198389,314.20609727,0.00015445,2]
[394582103,1763735198442,500.0,0.00015445,2]
[394582104,1763735198495,99.36241323,0.00015445,2]
[394582105,1763735198527,400.63758677,0.00015445,2]
[394582106,1763735198582,500.0,0.00015445,2]
[394582107,1763735198697,500.0,0.00015445,2]
[394582108,1763735199040,500.0,0.00015445,2]
[394582109,1763735205829,158.03322031,0.00015445,2]
[394582110,1763735206824,618.6,0.00015446,2]
[394582111,1763735207103,618.6,0.00015446,2]
[394582112,1763735207354,618.6,0.00015446,2]
[394582113,1763735212041,1817.6037237,0.00015346,2]
[394582114,1763735221734,300.0,0.00015445,2]
[394582115,1763735223755,300.0,0.00015445,2]
[394582116,1763735230235,164.06876657,0.00015346,2]
[394582117,1763735245586,1200.0,0.000149,5]
[394582173,1763735274157,500.0,0.00015446,2]
[394582174,1763735288267,3003.86670265,0.00015346,2]
[394582175,1763735288299,10000.01,0.00015346,2]
[394582176,1763735288330,10000.01,0.00015346,2]
[394582177,1763735288360,10000.01,0.00015346,2]
[394582178,1763735288587,10000.01,0.00015346,2]
[394582179,1763735288618,10000.01,0.00015346,2]
[394582180,1763735288647,10000.01,0.00015346,2]
[394582181,1763735288676,10000.01,0.00015346,2]
[394582182,1763735288709,10000.01,0.00015346,2]
[394582183,1763735288739,10000.01,0.00015346,2]
[394582184,1763735303426,-8844.63885199,0.00015346,2]
[394582185,1763735303600,-10000.01,0.00015346,2]
[394582186,1763735303630,-10000.01,0.00015346,2]
[394582187,1763735305575,-10000.01,0.00015346,2]
[394582188,1763735305638,-10000.01,0.00015346,2]